Workbook

Sheet Ground floor renovations (hidden)
A2: A.S. CHETTY - THIRD FLOORGROUND FLOOR REFURBISHMENT
A3: ITEM NO | C3: DESCRIPTION | E3: UNIT | F3: QUANTITY | G3: RATE | H3: AMOUNT
C5: BILL NO. 1
C7: Preliminaries and General
C9: The P&G's are priced excluding Vat but are inclusive of all items and expressed as a percentage amount of the Project Value in the appropriate category as indicated below. A percentage as per categories below must be added to the Project Amount to (9.5%) | E9: Item | F9: 1 | G9: =K186 -> 54,508.50 | H9: =G9*F9 -> 54,508.50
C11: Carried to summary | H11: =SUM(H9:H10) -> 54,508.50
C13: BILL NO. 2
C15: ALTERATIONS
C17: PREAMBLES
C19: REMOVAL OF EXISTING WORK
C21: Taking up and removing vinyl floor coverings, carpeting, etc
C23: Ceramic tile on floors including preparing screed for new flooring | E23: m² | F23: 25 | G23: 34.00 | H23: =G23*F23 -> 850.00
C25: Carpet tile floor covering including preparing screed for new flooring | E25: m² | F25: 240 | G25: 34.00 | H25: =F25*G25 -> 8,160.00
C27: Taking out and removing joinery fittings etc
C29: Timber wall cupboard exceeding 1000 x 450 x 900mm high | E29: No | F29: 2 | G29: 226.00 | H29: =F29*G29 -> 452.00
C31: Taking out and removing piping, sanitary fittings, etc including disconnecting piping from fittings and making good floor and wall finishes (making good tiling and paintwork elsewhere)
C33: Vitreous china wash hand basin | E33: No | F33: 5 | G33: 338.00 | H33: =F33*G33 -> 1,690.00
C35: Vitreous china WC pan with cistern | E35: No | F35: 6 | G35: 338.00 | H35: =F35*G35 -> 2,028.00
C37: Carried to summary | H37: =SUM(H21:H36) -> 13,180.00
C39: BILL NO. 3
C41: CARPENTRY AND JOINERY
C43: EXISTING WORK
C45: Supplying and Installing New Cash Register Drawers
C47: Remove and dispose existing cash register drawers; supply, deliver, and install new cash register drawers complete with runners, locks, and all necessary ironmongery; securely fixed in position, levelled, and tested for smooth operation | E47: No | F47: 8 | G47: 2,300.00 | H47: =G47*F47 -> 18,400.00
C49: FITTINGS
C51: Built-in cupboards
C53: Kitchen cupboards, plugged
C55: Floor unit 1 500 x 800 x 900mm high (granite top elsewhere) | E55: No | F55: 2 | G55: 3,500.00 | H55: =F55*G55 -> 7,000.00
C58: Carried to summary | H58: =SUM(H47:H56) -> 25,400.00
C60: BILL NO. 4
C62: FLOOR COVERINGS, WALL LININGS, ETC
C64: VINYL FLOORING
C66: Supply and install Luxury Vinyl Tile (0.5 mm wear layer), laid on a prepared surface. Apply primer to the subfloor, install 5 mm TAL Screedmaster self-levelling compound, allow to cure, and fit tiles using the manufacturer’s recommended adhesive. Finish with matching quadrant skirtings for a neat edge detail.
C68: On floors | E68: m² | F68: 370 | G68: 750.00 | H68: =G68*F68 -> 277,500.00
C70: Carried to summary | H70: =SUM(H68:H69) -> 277,500.00
C72: BILL NO. 10
C74: CEILINGS, PARTITIONS AND ACCESS FLOORING
C76: DRYWALL PARTITIONING
C78: Rhino-Drywall partition systems or equal similar Architect approved
C80: Partitioning woth bottom and top tracks plugged | E80: m² | F80: 40 | G80: 652.00 | H80: =F80*G80 -> 26,080.00
C82: Extra over drywall partition for :
C84: 44mm Hollow core timber door size 813 x 2032mm high including steel frame. | E84: No | F84: 1 | G84: 950.00 | H84: =G84*F84 -> 950.00
C86: Carried to summary | H86: =SUM(H80:H84) -> 27,030.00
C88: BILL NO. 16
C90: TILING
C92: PREAMBLES
C94: WALL TILING
C96: Allow the prime cost amount of R200/m2 for ceramic wall tiles, with 6mm straight joints fixed with approved tile adhesive and grout, all to Manufacturer's recommendations:
C98: On smooth plastered walls. (250mm x 400mm ceramic wall tiles as per specification) | E98: m2 | F98: 95 | G98: 352.00 | H98: =F98*G98 -> 33,440.00
C100: Allow the prime cost amount of R250/m2 for porcelain wall tiles, with 6mm straight joints fixed with approved tile adhesive and grout, all to Manufacturer's recommendations:
C102: On smooth plastered walls. (Porcelain subway tile installed in herringbone pattern, as per specification) | E102: m2 | F102: 25 | G102: 407.00 | H102: =F102*G102 -> 10,175.00
C104: FLOOR TILING
C106: Allow the prime cost amount of R250.00/m2 for ceramic floor tiles "TAL"or other equal Architect approved with a m.o.h.s. of at least 7 on screed with a minimum 3 mm joints using quick setting high strength gray powder adhesive. Surfaces to be tiled are to be primed before tiling using a cement slurry mixedusing liquid latex:
C108: On floors | E108: m2 | F108: 30 | G108: 407.00 | H108: =F108*G108 -> 12,210.00
C110: CORNER PROTECTORS, DIVIDING STRIPS, ETC
C112: 25 x 10mm high polished stainless steel wall corner protector , bedded in tile adhesive while tiles are laid. | E112: m | F112: 25 | G112: 250.00 | H112: =G112*F112 -> 6,250.00
C114: 25 x 3mm Brass Dividing strips Straight edge trim | E114: m | F114: 50 | G114: 155.00 | H114: =F114*G114 -> 7,750.00
C116: Carried to summary | H116: =SUM(H98:H114) -> 69,825.00
C118: BILL NO. 17
C120: PLUMBING AND DRAINAGE (PROVISIONAL)
C122: PREAMBLES
C124: SANITARY FITTINGS
C126: Vaal Sanitaryware or equal similar Architect approved
C128: Vitreous china "Parktown" 90° outlet top inlet (code 431500) closed rim back-to-wall pan to be used with an exposed flushvalve Flush volume 6/3 litres, subject to the pan being installed with a cistern providing an effective 6/3 litre flush volume. Accessories to include Flushmaster FJ2.000, with pan connector C-FM8.20 and offset flushpipe FJT5.7, DPI Flushfit, Marley SG47 pan collar or equivalent. Jazz thermoset toilet seat (code 8531Z0) and Wall fixing screws (code 8513Z0) all in strict accordance to manufacturer's instructions | E128: No | F128: 6 | G128: 5,200.00 | H128: =F128*G128 -> 31,200.00
C130: Granite Worktops
C132: 30mm thick granite colour Brazillian Coffee with 20mm all exposed edges large large bevel, fixed to supports (elsewhere specified) using dabs of 100% clear silicone adhesive at 200mm to 300mm centres along all supports with all joints filled with matching polyester resin glue. Surface to be sealed using an approved stone sealer, all in accordance with the manufacturer`s recommendations. | E132: m² | F132: 8 | G132: 2,500.00 | H132: =F132*G132 -> 20,000.00
C134: 'Franke (t/a Citimetal)' grade 304 (18/10) or equal Architect approved stainless steel catering ware:
C136: Franke Nouveau Kitchen Sink, fitted onto cupboard (elsewhere specified) including PVC trap (trap elsewhere specified) with 38mm waste fitting - 800 x 460mm | E136: No | F136: 1 | G136: 3,000.00 | H136: =G136*F136 -> 3,000.00
C138: Vitreous china or equal Architect approved:
C140: Supply & install fibreglass wash hand basin including all fittings (Vessel Basin) | E140: No | F140: 5 | G140: 3,200.00 | H140: =F140*G140 -> 16,000.00
C142: ELECTRIC WATER HEATERS
C144: Franke - Zip Stainless Steel 7.5 litre Hydroboil pro, (code: 380101) 45 -50 cups or equal approved complete with hydroboil sink overflow spout (code : 029229) or equal Architect approved | E144: No | F144: 1 | G144: 13,500.00 | H144: =F144*G144 -> 13,500.00
C146: Carried to summary | H146: =SUM(H128:H145) -> 83,700.00
C148: BILL NO. 18
C150: GLAZING
C152: TOPS, SHELVES, DOORS, MIRRORS, ETC.
C154: 6mm Silvered float glass copper backed mirrors with polished edges holed for and fixed with chromium plated dome capped mirror screws with rubber buffers to plugs in brickwork or concrete:
C156: Mirror 450 x 1000mm high with four screws. | E156: No | F156: 8 | G156: 900.00 | H156: =F156*G156 -> 7,200.00
C158: Carried to summary | H158: =SUM(H156) -> 7,200.00
C160: BILL NO. 19
C162: PAINTWORK
C164: PAINTWORK TO PREVIOUSLY PAINTED WORK
C166: WALLS
C168: Thoroughly clean down and remove all grease, dirt and blemishes of all kinds, blisters, scaling, surface cracks and similar defects and leave the surfaces in a thoroughly clean, smooth and stable condition, ready for painting. Cracks, crevices, nail holes, etc shall be stopped with hard stopping. Old stoppings which have become loose shall be removed and the holes restopped.The final state of preparatory work shall be that which shall in all cases produce in the finished painted surface a condition similar to new work
C170: Clean down and prepare existing surfaces and apply:
C172: Two coats PVA acrylic emulsion paint internally to emulsion painted plastered walls | E172: m² | F172: 500 | G172: 75.00 | H172: =F172*G172 -> 37,500.00
C174: ON WOOD
C176: Prepare, brush surface to remove all loose contaminants, stain and apply one coat "Plascon Woodcare Pretreatment (WWP 1)" or equal approved , and three coats "Woodcare Wood Preservative (FPR1)" or equal approved preservative strictly in accordance with the Manufacturer's instructions
C178: On doors and frames | E178: m² | F178: 50 | G178: 75.00 | H178: =F178*G178 -> 3,750.00
C180: Carried to summary | H180: =SUM(H170:H178) -> 41,250.00
C182: SUMMARY OF SCHEDULES
A183: 1 | C183: PRELIMINARY AND GENERAL | E183: BILL No. | F183: 1 | H183: =H11 -> 54,508.50
A184: 2 | C184: ALTERATIONS | E184: BILL No. | F184: 2 | H184: =H37 -> 13,180.00
A185: 3 | C185: CARPENTRY AND JOINERY | E185: BILL No. | F185: 3 | H185: =H58 -> 25,400.00
A186: 4 | C186: FLOOR COVERINGS, WALL LININGS, ETC | E186: BILL No. | F186: 4 | H186: =H70 -> 277,500.00 | K186: =(H184+H185+H186+H187+H188+H189+H190+H191)*0.1 -> 54508.5
A187: 5 | C187: CEILINGS, PARTITIONS AND ACCESS FLOORING | E187: BILL No. | F187: 5 | H187: =H86 -> 27,030.00
A188: 6 | C188: TILING | E188: BILL No. | F188: 6 | H188: =H116 -> 69,825.00
A189: 7 | C189: PLUMBING AND DRAINAGE | E189: BILL No. | F189: 7 | H189: =H146 -> 83,700.00
A190: 8 | C190: GLAZING | E190: BILL No. | F190: 8 | H190: =H158 -> 7,200.00
A191: 9 | C191: PAINTWORK | E191: BILL No. | F191: 9 | H191: =H180 -> 41,250.00
C192: SUB - TOTAL | H192: =SUM(H183:H191) -> 599,593.50
C194: ADD VAT @ 15% | E194: VAT | F194: 15% | H194: =H192*15% -> 89,939.03
C196: CARRIED TO FORM OF TENDER | H196: =SUM(H192:H194) -> 689,532.53

Sheet Office renovations (hidden)
A2: A.S. CHETTY - 3RD FLOOR RECEPTION AREA AND FRONT DOORS
A3: ITEM NO | C3: DESCRIPTION | E3: UNIT | F3: QUANTITY | G3: RATE | H3: AMOUNT
C5: BILL NO. 1
C7: Preliminaries and General
C9: The P&G's are priced excluding Vat but are inclusive of all items and expressed as a percentage amount of the Project Value in the appropriate category as indicated below. A percentage as per categories below must be added to the Project Amount to (9.5%) | E9: Item | F9: 1 | G9: 4,434.98 | H9: =G9 -> 4,434.98
C11: Carried to summary | H11: =SUM(H9:H10) -> 4,434.98
C13: BILL NO. 2
C15: ALTERATIONS
C17: PREAMBLES
C19: REMOVAL OF EXISTING WORK
C21: Taking up and removing vinyl floor coverings, carpeting, etc
C23: Laminated floor covering including preparing screed for new carpeting | E23: m² | F23: 25 | G23: 40.00 | H23: =F23*G23 -> 1,000.00
C25: Taking up and removing vinyl floor coverings, carpeting, etc
C27: Carpet tile floor covering including preparing screed for new carpeting | E27: m² | F27: 45 | G27: 35.00 | H27: =F27*G27 -> 1,575.00
C29: Carried to summary | H29: =SUM(H23:H27) -> 2,575.00
C30: BILL NO. 16
C32: TILING
C35: FLOOR TILING
C37: Allow the prime cost amount of R250.00/m2 for ceramic floor tiles "TAL"or other equal Architect approved with a m.o.h.s. of at least 7 on screed with a minimum 3 mm joints using quick setting high strength gray powder adhesive. Surfaces to be tiled are to be primed before tiling using a cement slurry mixedusing liquid latex:
C39: On floors | E39: m² | F39: 70 | G39: 407.00 | H39: =F39*G39 -> 28,490.00
C41: Carried to summary | H41: =SUM(H34:H40) -> 28,490.00
C45: BILL NO. 19
C47: PAINTWORK
C49: PAINTWORK TO PREVIOUSLY PAINTED WORK
C51: WALLS
C53: Thoroughly clean down and remove all grease, dirt and blemishes of all kinds, blisters, scaling, surface cracks and similar defects and leave the surfaces in a thoroughly clean, smooth and stable condition, ready for painting. Cracks, crevices, nail holes, etc shall be stopped with hard stopping. Old stoppings which have become loose shall be removed and the holes restopped.The final state of preparatory work shall be that which shall in all cases produce in the finished painted surface a condition similar to new work
C55: Clean down and prepare existing surfaces and apply:
C57: Two coats PVA acrylic emulsion paint internally to emulsion painted plastered walls | E57: m² | F57: 100 | G57: 75.00 | H57: =F57*G57 -> 7,500.00
C60: Carried to summary | H60: =SUM(H55:H58) -> 7,500.00
C62: SUMMARY OF SCHEDULES
A63: 1 | C63: PRELIMINARY AND GENERAL | E63: BILL No. | F63: 1 | H63: =H11 -> 4,434.98
A64: 2 | C64: ALTERATIONS | E64: BILL No. | F64: 2 | H64: =H29 -> 2,575.00
A65: 5 | C65: TILING | E65: BILL No. | F65: 16 | H65: =H41 -> 28,490.00
A66: 8 | C66: PAINTWORK | E66: BILL No. | F66: 19 | H66: =H60 -> 7,500.00
C67: SUB - TOTAL | H67: =SUM(H63:H66) -> 42,999.98
C69: ADD VAT @ 15% | E69: VAT | F69: 15% | H69: =H67*15% -> 6,450.00
C71: CARRIED TO FORM OF TENDER | H71: =SUM(H67:H69) -> 49,449.98

Sheet Office renovations (2)
A2: A.S. CHETTY - 3RD FLOOR RECEPTION AREA AND FRONT DOORS
A3: ITEM NO | C3: DESCRIPTION | E3: UNIT | F3: QUANTITY | G3: RATE | H3: AMOUNT
C5: BILL NO. 1
C7: Preliminaries and General
C9: The P&G's are priced excluding Vat but are inclusive of all items and expressed as a percentage amount of the Project Value in the appropriate category as indicated below. A percentage as per categories below must be added to the Project Amount to (9.5%) | E9: Item | F9: 1
C11: Carried to summary
C13: BILL NO. 2
C15: ALTERATIONS
C17: PREAMBLES
C19: REMOVAL OF EXISTING WORK
C21: Taking up and removing vinyl floor coverings, carpeting, etc
C23: Laminated floor covering including preparing screed for new carpeting | E23: m² | F23: 25
C25: Taking up and removing vinyl floor coverings, carpeting, etc
C27: Carpet tile floor covering including preparing screed for new carpeting | E27: m² | F27: 45
C29: Carried to summary
C30: BILL NO. 16
C32: TILING
C35: FLOOR TILING
C37: Allow the prime cost amount of R250.00/m2 for ceramic floor tiles "TAL"or other equal Architect approved with a m.o.h.s. of at least 7 on screed with a minimum 3 mm joints using quick setting high strength gray powder adhesive. Surfaces to be tiled are to be primed before tiling using a cement slurry mixedusing liquid latex:
C39: On floors | E39: m² | F39: 70
C41: Carried to summary
C45: BILL NO. 19
C47: PAINTWORK
C49: PAINTWORK TO PREVIOUSLY PAINTED WORK
C51: WALLS
C53: Thoroughly clean down and remove all grease, dirt and blemishes of all kinds, blisters, scaling, surface cracks and similar defects and leave the surfaces in a thoroughly clean, smooth and stable condition, ready for painting. Cracks, crevices, nail holes, etc shall be stopped with hard stopping. Old stoppings which have become loose shall be removed and the holes restopped.The final state of preparatory work shall be that which shall in all cases produce in the finished painted surface a condition similar to new work
C55: Clean down and prepare existing surfaces and apply:
C57: Two coats PVA acrylic emulsion paint internally to emulsion painted plastered walls | E57: m² | F57: 100
C60: Carried to summary
C62: SUMMARY OF SCHEDULES
A63: 1 | C63: PRELIMINARY AND GENERAL | E63: BILL No. | F63: 1
A64: 2 | C64: ALTERATIONS | E64: BILL No. | F64: 2
A65: 5 | C65: TILING | E65: BILL No. | F65: 16
A66: 8 | C66: PAINTWORK | E66: BILL No. | F66: 19
C67: SUB - TOTAL
C69: ADD VAT @ 15% | E69: VAT | F69: 15%
C71: CARRIED TO FORM OF TENDER

Sheet Measurements (hidden)
A1: Measuring List for painting to walls and Ceilings for Oribi Airport
A3: Lecture Room
A4: Length | B4: Height | C4: Total
A5: 14.616 | B5: 2.874 | C5: =A5*B5 -> 42.006384 | D5: painting to walls
A6: 3.969 | B6: 5.05 | C6: =A6*B6 -> 20.04345 | D6: Painting to Ceiling
A9: Filing Room
A10: 17.28 | B10: 2.67 | C10: =A10*B10-1.64 -> 44.4976 | D10: Painting to walls
A11: 5.073 | B11: 3.567 | C11: =A11*B11-1.64 -> 16.455391 | D11: Painting to Ceiling
A12: Replace Lockset | C12: 1
A15: Gym
A16: 25 | B16: 2.683 | C16: =A16*B16-3.28 -> 63.795 | D16: Painting to walls
A17: 11 | B17: 2.683 | C17: =A17*B17-4.92 -> 24.593 | D17: Painting to walls
A18: 8.074 | B18: 2.683 | C18: =A18*B18-4.92 -> 16.742542 | D18: Painting to walls
C19: 11m | D19: Replace skirting
C20: 1 | D20: Service alluminium door
C21: 0.36 | D21: Replace tiling
A23: Staircase Area
A24: 9.266 | B24: 4.459 | C24: =A24*B24 -> 41.317094 | D24: Painting to walls
A25: 3.993 | B25: 4 | C25: =A25*B25 -> 15.972 | D25: Painting to steel Balustrades
A28: External work
A29: 1.447 | B29: 0.5 | C29: =A29*B29 -> 0.7235 | D29: Repair external Brick Pier
C30: 1m2 | D30: Repair paving to match existing
A31: 33 | B31: 0.5 | C31: =A31*B31 -> 16.5 | D31: Painting to Balcony beam
D32: Replace gutter
D33: Replace downpipe
A36: Departure Room
A37: 11 | B37: 5 | C37: =A37*B37 -> 55 | D37: replace existing ceiling panels
C38: 1 | D38: Service Alluminium door (Dorma)
A39: silicone to leaks | C39: 2 | D39: Male Toilets
C40: 1 | D40: Install new door closer
A41: 12 | B41: 10.42 | C41: =A41*B41 -> 125.04 | D41: Roofing
A44: Central screening Point
A45: Fix Trellidor
A48: Hold Baggage Screening
A49: 25.4 | B49: 2.837 | C49: =A49*B49 -> 72.0598 | D49: Painting to walls
A50: 5.4 | B50: 8 | C50: =A50*B50 -> 43.2 | D50: replace existing ceiling panels and set aside for re-use
A51: patching to Partition | C51: 0.5m2
A54: Fire truck parking bay
A55: Service Alluminium double Door | C55: 1
A58: General workers rest room
A59: 13.77 | B59: 2.686 | C59: =A59*B59 -> 36.98622 | D59: Painting to walls
A60: 4.08 | B60: 4.795 | C60: =A60*B60 -> 19.5636 | D60: Painting to Ceiling
A61: service alluminium door | C61: 1
A64: Gate 2 Security Block
A65: 4.484 | B65: 2.674 | C65: =A65*B65 -> 11.990216 | D65: Painting to walls
C66: 5 | D66: Painting to doors
A67: 7.982 | B67: 0.5 | C67: =A67*B67 -> 3.991 | D67: Painting to walls bathroom
A68: 2.844 | B68: 1.147 | C68: =A68*B68 -> 3.262068 | D68: Painting to Ceiling
A69: Replace Shower rose | C69: 1
A72: Female Public Toiles
A73: Fix tap leaks | C73: 2
A74: Service flush master | C74: 1
A77: Permit Office
A78: Build up opening to form counter and install shelving
A81: Managers Office
C82: 1 | D82: Install timber sliding door
D83: Replace Capert strip to match existing
A85: Air Traffic Control Room
D86: Replace roof sheets
A89: Arrival Hall
A90: service alluminium door and Handle | C90: 1
